[Event "*** Titled Tuesday 3|2 Blitz"]
[Site "Chess.com"]
[Date "2015.11.03"]
[Round "5"]
[White "ItalianMachine"]
[Black "WanderingPuppet"]
[Result "1-0"]
[WhiteElo "2257"]
[BlackElo "2160"]
[TimeControl "180+2"]
[EndTime "17:55:44 PST"]
[Termination "ItalianMachine won by resignation"]

1. e4 {[%clk 0:03:01.9]} 1... c5 {[%clk 0:03:00.8]} 2. Nc3 {[%clk 0:02:58.3]}
2... d6 {[%clk 0:03:01.9]} 3. f4 {[%clk 0:02:59.2]} 3... Nc6 {[%clk 0:03:03.5]}
4. g3 {[%clk 0:03:00.7]} 4... h5 {[%clk 0:03:03.8]} 5. Bg2 {[%clk 0:02:58.4]}
5... h4 {[%clk 0:03:04.6]} 6. g4 {[%clk 0:02:59.1]} 6... Nd4 {[%clk 0:02:46.1]}
7. h3 {[%clk 0:02:58.1]} 7... g6 {[%clk 0:02:44.9]} 8. Nce2 {[%clk 0:02:59]}
8... Bg7 {[%clk 0:02:45]} 9. c3 {[%clk 0:03:00.2]} 9... Nxe2 {[%clk 0:02:42]}
10. Nxe2 {[%clk 0:03:02.1]} 10... e6 {[%clk 0:02:35.3]} 11. d4 {[%clk
0:03:02.6]} 11... Qb6 {[%clk 0:02:33.7]} 12. O-O {[%clk 0:03:02.6]} 12... Ne7
{[%clk 0:02:33.6]} 13. Kh1 {[%clk 0:03:01.9]} 13... f5 {[%clk 0:02:31]} 14. exf5
{[%clk 0:02:52.5]} 14... gxf5 {[%clk 0:02:31.4]} 15. dxc5 {[%clk 0:02:43.1]}
15... Qxc5 {[%clk 0:02:31.7]} 16. Nd4 {[%clk 0:02:39.8]} 16... Bd7 {[%clk
0:02:00.7]} 17. Be3 {[%clk 0:02:39.4]} 17... Nd5 {[%clk 0:01:52.2]} 18. Bg1
{[%clk 0:02:34.5]} 18... Qb6 {[%clk 0:01:17.8]} 19. Nxf5 {[%clk 0:02:29.9]}
19... Qxb2 {[%clk 0:01:19.2]} 20. Nxg7+ {[%clk 0:02:24.8]} 20... Kf7 {[%clk
0:01:17.3]} 21. Nxe6 {[%clk 0:02:22.8]} 21... Bxe6 {[%clk 0:01:12.7]} 22. Bxd5
{[%clk 0:02:23.1]} 22... Rhe8 {[%clk 0:01:09]} 23. f5 {[%clk 0:02:21.8]} 23...
Bxd5+ {[%clk 0:01:03]} 24. Qxd5+ {[%clk 0:02:23.7]} 24... Kf8 {[%clk 0:01:01.4]}
25. Qxd6+ {[%clk 0:02:22.3]} 25... Re7 {[%clk 0:01:02.3]} 26. f6 {[%clk
0:02:22]} 1-0

[Event "*** Titled Tuesday 3|2 Blitz"]
[Site "Chess.com"]
[Date "2015.11.03"]
[Round "5"]
[White "Alliswell998"]
[Black "saraswathii"]
[Result "1-0"]
[WhiteElo "2108"]
[BlackElo "1891"]
[TimeControl "180+2"]
[EndTime "17:56:59 PST"]
[Termination "Alliswell998 won on time"]

1. e4 {[%clk 0:03:01.9]} 1... c5 {[%clk 0:02:57.8]} 2. Nc3 {[%clk 0:03:01.8]}
2... e6 {[%clk 0:02:58]} 3. f4 {[%clk 0:03:02.8]} 3... d5 {[%clk 0:02:56.2]} 4.
Nf3 {[%clk 0:03:03.3]} 4... Nc6 {[%clk 0:02:46.6]} 5. Bb5 {[%clk 0:03:03.2]}
5... d4 {[%clk 0:02:42]} 6. Bxc6+ {[%clk 0:03:02.8]} 6... bxc6 {[%clk
0:02:42.1]} 7. Nb1 {[%clk 0:03:04.4]} 7... Ba6 {[%clk 0:02:34.9]} 8. d3 {[%clk
0:03:03]} 8... Nf6 {[%clk 0:02:23.2]} 9. O-O {[%clk 0:02:54.8]} 9... Be7 {[%clk
0:02:18.7]} 10. Nbd2 {[%clk 0:02:53.9]} 10... O-O {[%clk 0:02:18.9]} 11. b3
{[%clk 0:02:53.7]} 11... Bc8 {[%clk 0:01:39.4]} 12. Ne5 {[%clk 0:02:52.7]} 12...
Qc7 {[%clk 0:01:31.9]} 13. a4 {[%clk 0:02:47.2]} 13... Nd7 {[%clk 0:01:07.3]}
14. Ndc4 {[%clk 0:02:43.8]} 14... Nxe5 {[%clk 0:01:00.2]} 15. fxe5 {[%clk
0:02:40.7]} 15... Ba6 {[%clk 0:00:57]} 16. Bf4 {[%clk 0:02:28.8]} 16... Bxc4
{[%clk 0:00:36.3]} 17. bxc4 {[%clk 0:02:28.8]} 17... Rfb8 {[%clk 0:00:36.4]} 18.
Qh5 {[%clk 0:02:24.6]} 18... h6 {[%clk 0:00:10.3]} 19. Bxh6 {[%clk 0:02:16.8]}
19... gxh6 {[%clk 0:00:10.4]} 20. Qxf7+ {[%clk 0:02:16.2]} 20... Kh8 {[%clk
0:00:10.3]} 21. Qxe6 {[%clk 0:02:13.5]} 21... Rf8 {[%clk 0:00:09.9]} 22. Qxh6+
{[%clk 0:02:13.8]} 22... Kg8 {[%clk 0:00:10.7]} 23. Qg6+ {[%clk 0:02:07.3]} 1-0

[Event "*** Titled Tuesday 3|2 Blitz"]
[Site "Chess.com"]
[Date "2015.11.03"]
[Round "5"]
[White "Boryboy"]
[Black "AlexanderL"]
[Result "1/2-1/2"]
[WhiteElo "2490"]
[BlackElo "2555"]
[TimeControl "180+2"]
[EndTime "17:57:40 PST"]
[Termination "Game drawn by agreement"]

1. d4 {[%clk 0:03:01.9]} 1... d5 {[%clk 0:02:58.2]} 2. Nf3 {[%clk 0:03:02.1]}
2... Nf6 {[%clk 0:02:58.6]} 3. c4 {[%clk 0:03:01.4]} 3... c6 {[%clk 0:02:59.7]}
4. e3 {[%clk 0:03:00.3]} 4... Bg4 {[%clk 0:02:58.7]} 5. Qb3 {[%clk 0:02:58.3]}
5... Qb6 {[%clk 0:02:57.5]} 6. Nc3 {[%clk 0:02:57.7]} 6... e6 {[%clk 0:02:57.3]}
7. Nh4 {[%clk 0:02:56.5]} 7... Nbd7 {[%clk 0:02:56.9]} 8. h3 {[%clk 0:02:55.6]}
8... Bh5 {[%clk 0:02:58]} 9. g4 {[%clk 0:02:56.2]} 9... Bg6 {[%clk 0:02:59.2]}
10. Nxg6 {[%clk 0:02:54.7]} 10... hxg6 {[%clk 0:03:00.1]} 11. Bg2 {[%clk
0:02:56.2]} 11... Qb4 {[%clk 0:02:33.6]} 12. c5 {[%clk 0:02:43.6]} 12... Qxb3
{[%clk 0:02:32.3]} 13. axb3 {[%clk 0:02:45.4]} 13... a6 {[%clk 0:02:33.4]} 14.
b4 {[%clk 0:02:40.6]} 14... Rc8 {[%clk 0:02:34.3]} 15. f4 {[%clk 0:02:37.7]}
15... Be7 {[%clk 0:02:33.1]} 16. Bd2 {[%clk 0:02:32.2]} 16... Bd8 {[%clk
0:02:33.9]} 17. Ke2 {[%clk 0:02:27.7]} 17... Bc7 {[%clk 0:02:35]} 18. Kf2 {[%clk
0:02:07.1]} 18... Rh7 {[%clk 0:02:34.9]} 19. Bf3 {[%clk 0:02:02.5]} 19... Ke7
{[%clk 0:02:34.4]} 20. Kg2 {[%clk 0:02:03.9]} 20... Rch8 {[%clk 0:02:34.3]} 21.
Ne2 {[%clk 0:01:51]} 21... Kd8 {[%clk 0:02:33.5]} 22. Ng3 {[%clk 0:01:49.8]}
22... Kc8 {[%clk 0:02:30.7]} 23. Be2 {[%clk 0:01:44]} 23... Ng8 {[%clk
0:02:31.5]} 24. Bd3 {[%clk 0:01:29.5]} 24... f5 {[%clk 0:02:25.7]} 25. g5 {[%clk
0:01:26.4]} 25... Ne7 {[%clk 0:02:15.8]} 26. Ne2 {[%clk 0:01:26.2]} 26... Nf8
{[%clk 0:02:12.1]} 27. Nc1 {[%clk 0:01:22.7]} 27... Nd7 {[%clk 0:02:00]} 28. Nb3
{[%clk 0:01:20.2]} 28... Bd8 {[%clk 0:02:00.6]} 29. Na5 {[%clk 0:01:12.2]} 29...
Nb8 {[%clk 0:02:01.2]} 30. Be1 {[%clk 0:01:09.7]} 30... Rh5 {[%clk 0:02:01.7]}
31. Nb3 {[%clk 0:01:07.2]} 31... Bc7 {[%clk 0:02:02.7]} 32. Be2 {[%clk
0:01:04.2]} 32... Nd7 {[%clk 0:02:03.7]} 33. Bg3 {[%clk 0:01:03.8]} 33... Kb8
{[%clk 0:02:04.5]} 34. Bxh5 {[%clk 0:01:04.1]} 34... gxh5 {[%clk 0:02:04.5]} 35.
h4 {[%clk 0:01:04.6]} 35... g6 {[%clk 0:02:05.4]} 36. Na5 {[%clk 0:01:05.3]}
36... Nc8 {[%clk 0:02:01.2]} 37. Ra2 {[%clk 0:01:06.2]} 37... Na7 {[%clk
0:02:02.2]} 38. Rha1 {[%clk 0:01:06.8]} 38... Nb5 {[%clk 0:02:03.3]} 39. Be1
{[%clk 0:01:08.1]} 39... Kc8 {[%clk 0:01:59.1]} 40. Bd2 {[%clk 0:01:09.1]} 40...
Re8 {[%clk 0:01:57.2]} 41. Nb3 {[%clk 0:01:09]} 41... Bd8 {[%clk 0:01:57.3]} 42.
Kf3 {[%clk 0:01:09.7]} 42... Be7 {[%clk 0:01:58.2]} 43. Bc3 {[%clk 0:01:10.9]}
43... Bf8 {[%clk 0:01:59.3]} 44. Re1 {[%clk 0:01:10.3]} 44... Kc7 {[%clk
0:02:00.1]} 45. Raa1 {[%clk 0:01:11]} 45... Bg7 {[%clk 0:02:01.2]} 46. Ra2
{[%clk 0:01:12.1]} 46... Re7 {[%clk 0:02:01.5]} 47. Nd2 {[%clk 0:01:12.4]}
1/2-1/2

[Event "*** Titled Tuesday 3|2 Blitz"]
[Site "Chess.com"]
[Date "2015.11.03"]
[Round "5"]
[White "TheLancer"]
[Black "MMSANCHEZ"]
[Result "0-1"]
[WhiteElo "2308"]
[BlackElo "2315"]
[TimeControl "180+2"]
[EndTime "17:58:14 PST"]
[Termination "MMSANCHEZ won by resignation"]

1. e4 {[%clk 0:03:01.9]} 1... e6 {[%clk 0:03:00.1]} 2. d4 {[%clk 0:02:16.9]}
2... d5 {[%clk 0:02:59.6]} 3. Nc3 {[%clk 0:02:16.3]} 3... Bb4 {[%clk 0:03:00.1]}
4. e5 {[%clk 0:02:17.3]} 4... c5 {[%clk 0:03:00.4]} 5. a3 {[%clk 0:02:18.9]}
5... Bxc3+ {[%clk 0:03:01.4]} 6. bxc3 {[%clk 0:02:20.8]} 6... Ne7 {[%clk
0:03:02.1]} 7. Nf3 {[%clk 0:02:20.3]} 7... b6 {[%clk 0:03:02.1]} 8. Bb5+ {[%clk
0:02:20.8]} 8... Bd7 {[%clk 0:03:03.2]} 9. Be2 {[%clk 0:02:20]} 9... Qc7 {[%clk
0:03:02.2]} 10. h4 {[%clk 0:02:17.5]} 10... h6 {[%clk 0:03:02.3]} 11. h5 {[%clk
0:02:18.1]} 11... Nbc6 {[%clk 0:02:59.2]} 12. Bd2 {[%clk 0:01:55.3]} 12... c4
{[%clk 0:02:57.9]} 13. a4 {[%clk 0:01:53.9]} 13... O-O-O {[%clk 0:02:57.4]} 14.
Bc1 {[%clk 0:01:45]} 14... f6 {[%clk 0:02:56.2]} 15. Bf4 {[%clk 0:01:36.3]}
15... g5 {[%clk 0:02:37.9]} 16. hxg6 {[%clk 0:01:02.8]} 16... Nxg6 {[%clk
0:02:35.8]} 17. Bg3 {[%clk 0:01:04.4]} 17... fxe5 {[%clk 0:02:36.6]} 18. Nxe5
{[%clk 0:00:54.6]} 18... Ncxe5 {[%clk 0:02:36.8]} 19. dxe5 {[%clk 0:00:56]}
19... Rdf8 {[%clk 0:02:30.8]} 20. Qd4 {[%clk 0:00:41.2]} 20... Ne7 {[%clk
0:02:29.7]} 21. Bg4 {[%clk 0:00:37.5]} 21... Nf5 {[%clk 0:02:29.3]} 22. Bxf5
{[%clk 0:00:31.9]} 22... Rxf5 {[%clk 0:02:29.9]} 23. a5 {[%clk 0:00:20.5]} 23...
Kb7 {[%clk 0:02:07.1]} 24. axb6 {[%clk 0:00:20.9]} 24... Qxb6 {[%clk 0:02:07.8]}
25. O-O {[%clk 0:00:19.7]} 25... Qxd4 {[%clk 0:02:08.3]} 26. cxd4 {[%clk
0:00:21.6]} 26... a6 {[%clk 0:02:08.6]} 27. Rfb1+ {[%clk 0:00:20.2]} 27... Bb5
{[%clk 0:02:08.5]} 28. c3 {[%clk 0:00:20]} 28... h5 {[%clk 0:02:09.6]} 29. f3
{[%clk 0:00:16]} 29... h4 {[%clk 0:02:10.6]} 30. Bh2 {[%clk 0:00:15.9]} 30... h3
{[%clk 0:02:11.9]} 31. Rb2 {[%clk 0:00:16.6]} 31... hxg2 {[%clk 0:02:12.7]} 32.
Kxg2 {[%clk 0:00:18.5]} 32... Rg8+ {[%clk 0:02:12.9]} 33. Kh1 {[%clk 0:00:18.3]}
33... Rxf3 {[%clk 0:02:12.3]} 34. Rc2 {[%clk 0:00:19.8]} 34... Ka7 {[%clk
0:02:12.3]} 35. Rb2 {[%clk 0:00:20]} 35... Be8 {[%clk 0:02:11]} 36. Rab1 {[%clk
0:00:19.9]} 36... Rg7 {[%clk 0:01:56.8]} 37. Rb8 {[%clk 0:00:09.8]} 37... Bh5
{[%clk 0:01:54.5]} 38. Rd8 {[%clk 0:00:06.6]} 38... Rh3 {[%clk 0:01:45.5]} 39.
Rf8 {[%clk 0:00:05.3]} 39... Bf3+ {[%clk 0:01:45.5]} 40. Rxf3 {[%clk 0:00:06.4]}
40... Rxf3 {[%clk 0:01:46.8]} 0-1

[Event "*** Titled Tuesday 3|2 Blitz"]
[Site "Chess.com"]
[Date "2015.11.03"]
[Round "5"]
[White "Sadovsky_Artem"]
[Black "jcibarra"]
[Result "1/2-1/2"]
[WhiteElo "2469"]
[BlackElo "2538"]
[TimeControl "180+2"]
[EndTime "17:58:58 PST"]
[Termination "Game drawn by repetition"]

1. e4 {[%clk 0:02:50.1]} 1... c5 {[%clk 0:03:00.5]} 2. Nf3 {[%clk 0:02:51]} 2...
e6 {[%clk 0:03:01.5]} 3. c4 {[%clk 0:02:52]} 3... Nc6 {[%clk 0:03:01.8]} 4. Nc3
{[%clk 0:02:52.1]} 4... Nf6 {[%clk 0:03:02.9]} 5. Be2 {[%clk 0:02:52.4]} 5...
Qc7 {[%clk 0:03:00.7]} 6. O-O {[%clk 0:02:52.8]} 6... Ng4 {[%clk 0:02:54]} 7. h3
{[%clk 0:02:44.4]} 7... h5 {[%clk 0:02:49.8]} 8. Re1 {[%clk 0:02:34.2]} 8... Nd4
{[%clk 0:02:49.2]} 9. d3 {[%clk 0:02:24.1]} 9... Nxf3+ {[%clk 0:02:46.6]} 10.
Bxf3 {[%clk 0:02:23.7]} 10... Qh2+ {[%clk 0:02:45.5]} 11. Kf1 {[%clk 0:02:24.8]}
11... Ne5 {[%clk 0:02:42.2]} 12. Be3 {[%clk 0:02:17.3]} 12... b6 {[%clk
0:02:27]} 13. Nb5 {[%clk 0:02:11]} 13... Kd8 {[%clk 0:02:00.4]} 14. Ke2 {[%clk
0:02:11.5]} 14... Nxf3 {[%clk 0:01:59]} 15. Kxf3 {[%clk 0:02:10.5]} 15... Qe5
{[%clk 0:01:53.2]} 16. Ke2 {[%clk 0:02:02.1]} 16... Qxb2+ {[%clk 0:01:49.2]} 17.
Kf1 {[%clk 0:02:03.2]} 17... a6 {[%clk 0:01:42.4]} 18. Rb1 {[%clk 0:02:02.4]}
18... Qe5 {[%clk 0:01:41.8]} 19. d4 {[%clk 0:01:59]} 19... Qh2 {[%clk
0:01:38.5]} 20. Nc3 {[%clk 0:01:55.2]} 20... Qh1+ {[%clk 0:01:34.2]} 21. Ke2
{[%clk 0:01:56.2]} 21... Qxg2 {[%clk 0:01:35.6]} 22. Rg1 {[%clk 0:01:54.9]}
22... Qxh3 {[%clk 0:01:33.8]} 23. Rg3 {[%clk 0:01:52.7]} 23... Qh2 {[%clk
0:01:30.1]} 24. Rxb6 {[%clk 0:01:43.4]} 24... h4 {[%clk 0:01:29.8]} 25. Rg4
{[%clk 0:01:40.3]} 25... Qc7 {[%clk 0:01:29.2]} 26. Na4 {[%clk 0:01:33.8]} 26...
cxd4 {[%clk 0:01:27.8]} 27. Qxd4 {[%clk 0:01:24.7]} 27... Rh5 {[%clk 0:01:07]}
28. Rxg7 {[%clk 0:00:48.1]} 28... Bxg7 {[%clk 0:01:05.2]} 29. Qxg7 {[%clk
0:00:49.7]} 29... Qxc4+ {[%clk 0:01:05.7]} 30. Kf3 {[%clk 0:00:50.7]} 30... Qxa4
{[%clk 0:00:31.6]} 31. Qf8+ {[%clk 0:00:46.7]} 31... Kc7 {[%clk 0:00:32.9]} 32.
Qd6+ {[%clk 0:00:44.4]} 32... Kd8 {[%clk 0:00:32.9]} 33. Qf8+ {[%clk 0:00:32.1]}
33... Kc7 {[%clk 0:00:34.2]} 34. Qd6+ {[%clk 0:00:33.8]} 34... Kd8 {[%clk
0:00:35.3]} 35. Bg5+ {[%clk 0:00:30.2]} 35... Rxg5 {[%clk 0:00:34.6]} 36. Qf8+
{[%clk 0:00:31.3]} 36... Kc7 {[%clk 0:00:36]} 37. Qd6+ {[%clk 0:00:32.2]} 37...
Kd8 {[%clk 0:00:37.2]} 38. Qf8+ {[%clk 0:00:33.7]} 38... Kc7 {[%clk 0:00:38.5]}
39. Qd6+ {[%clk 0:00:35]} 39... Kd8 {[%clk 0:00:39.4]} 1/2-1/2

[Event "*** Titled Tuesday 3|2 Blitz"]
[Site "Chess.com"]
[Date "2015.11.03"]
[Round "5"]
[White "jcgs1030"]
[Black "gauranga"]
[Result "1-0"]
[WhiteElo "2130"]
[BlackElo "1970"]
[TimeControl "180+2"]
[EndTime "17:59:03 PST"]
[Termination "jcgs1030 won on time"]

1. e4 {[%clk 0:03:01.9]} 1... b6 {[%clk 0:02:57.7]} 2. d4 {[%clk 0:03:00.8]}
2... Bb7 {[%clk 0:02:59.6]} 3. f3 {[%clk 0:02:58.7]} 3... e6 {[%clk 0:03:00.2]}
4. Be3 {[%clk 0:02:58.3]} 4... c5 {[%clk 0:03:01.3]} 5. Ne2 {[%clk 0:02:57.6]}
5... cxd4 {[%clk 0:02:57.7]} 6. Nxd4 {[%clk 0:02:58.7]} 6... d6 {[%clk 0:02:59]}
7. Nc3 {[%clk 0:02:59.6]} 7... a6 {[%clk 0:03:00.2]} 8. Qd2 {[%clk 0:03:00.7]}
8... Nd7 {[%clk 0:03:01]} 9. O-O-O {[%clk 0:03:02.2]} 9... Qc7 {[%clk
0:03:00.3]} 10. Kb1 {[%clk 0:03:00.9]} 10... Ngf6 {[%clk 0:02:55.6]} 11. g4
{[%clk 0:03:00.9]} 11... h6 {[%clk 0:02:56.4]} 12. h4 {[%clk 0:03:01.8]} 12...
Ne5 {[%clk 0:02:52.1]} 13. Qf2 {[%clk 0:02:48.4]} 13... b5 {[%clk 0:02:43.7]}
14. Rg1 {[%clk 0:02:46.5]} 14... Nfd7 {[%clk 0:02:38.8]} 15. g5 {[%clk
0:02:30.3]} 15... hxg5 {[%clk 0:02:39.8]} 16. hxg5 {[%clk 0:02:30.2]} 16... g6
{[%clk 0:02:40.2]} 17. f4 {[%clk 0:02:30.6]} 17... Nc4 {[%clk 0:02:41]} 18. Bxc4
{[%clk 0:02:27.4]} 18... Qxc4 {[%clk 0:02:38.8]} 19. f5 {[%clk 0:02:21.7]} 19...
b4 {[%clk 0:02:03.1]} 20. fxe6 {[%clk 0:02:20.1]} 20... fxe6 {[%clk 0:02:04.3]}
21. Rgf1 {[%clk 0:01:56.7]} 21... Rh7 {[%clk 0:01:49.7]} 22. Na4 {[%clk
0:01:39.1]} 22... e5 {[%clk 0:01:11.9]} 23. Nb6 {[%clk 0:01:29.7]} 23... Nxb6
{[%clk 0:01:09.1]} 24. Qxf8+ {[%clk 0:01:28.5]} 24... Kd7 {[%clk 0:01:10.4]} 25.
Qf6 {[%clk 0:00:40.2]} 25... exd4 {[%clk 0:00:55.7]} 26. Rxd4 {[%clk 0:00:42.1]}
26... Qe6 {[%clk 0:00:45]} 27. Qxe6+ {[%clk 0:00:37.4]} 27... Kxe6 {[%clk
0:00:45.7]} 28. Rf6+ {[%clk 0:00:38.7]} 28... Ke7 {[%clk 0:00:39.8]} 29. Rxb4
{[%clk 0:00:38.2]} 29... Rh1+ {[%clk 0:00:30.1]} 30. Bc1 {[%clk 0:00:34.7]}
30... Nd7 {[%clk 0:00:08.3]} 31. Rxb7 {[%clk 0:00:35.1]} 31... Rg8 {[%clk
0:00:08.2]} 32. b3 {[%clk 0:00:33.5]} 1-0

[Event "*** Titled Tuesday 3|2 Blitz"]
[Site "Chess.com"]
[Date "2015.11.03"]
[Round "5"]
[White "GrigorGrigorov"]
[Black "Fh2411"]
[Result "1-0"]
[WhiteElo "2420"]
[BlackElo "2320"]
[TimeControl "180+2"]
[EndTime "17:59:06 PST"]
[Termination "GrigorGrigorov won by resignation"]

1. d4 {[%clk 0:03:01.9]} 1... d5 {[%clk 0:02:58.7]} 2. Nf3 {[%clk 0:03:02.3]}
2... Nf6 {[%clk 0:02:58.6]} 3. c4 {[%clk 0:03:02.9]} 3... c6 {[%clk 0:02:58.6]}
4. Nbd2 {[%clk 0:03:02.9]} 4... h6 {[%clk 0:02:43.7]} 5. Qc2 {[%clk 0:02:59.3]}
5... Nbd7 {[%clk 0:02:27.5]} 6. e3 {[%clk 0:02:51.8]} 6... e6 {[%clk 0:02:18.7]}
7. Bd3 {[%clk 0:02:52.8]} 7... Bd6 {[%clk 0:02:18.6]} 8. O-O {[%clk 0:02:53.5]}
8... Qe7 {[%clk 0:02:17]} 9. Re1 {[%clk 0:02:52.8]} 9... O-O {[%clk 0:02:06.6]}
10. e4 {[%clk 0:02:53.8]} 10... dxe4 {[%clk 0:02:07.2]} 11. Nxe4 {[%clk
0:02:54.9]} 11... Nxe4 {[%clk 0:02:08.7]} 12. Bxe4 {[%clk 0:02:56.1]} 12... Nf6
{[%clk 0:02:09.8]} 13. Bd3 {[%clk 0:02:47.7]} 13... Rd8 {[%clk 0:02:09.4]} 14.
c5 {[%clk 0:02:32.9]} 14... Bc7 {[%clk 0:01:51.7]} 15. b4 {[%clk 0:02:33.2]}
15... b6 {[%clk 0:01:41.3]} 16. Bd2 {[%clk 0:02:06]} 16... Bb7 {[%clk
0:01:25.8]} 17. a4 {[%clk 0:02:02.5]} 17... a5 {[%clk 0:01:02.4]} 18. Rab1
{[%clk 0:01:43.5]} 18... axb4 {[%clk 0:00:38.8]} 19. Bxb4 {[%clk 0:01:38.6]}
19... Nd5 {[%clk 0:00:38.2]} 20. Bd2 {[%clk 0:01:36.3]} 20... Ba6 {[%clk
0:00:30]} 21. Bh7+ {[%clk 0:01:37.1]} 21... Kh8 {[%clk 0:00:29.5]} 22. Be4
{[%clk 0:01:38.7]} 22... bxc5 {[%clk 0:00:29.4]} 23. dxc5 {[%clk 0:01:34.7]}
23... Qf6 {[%clk 0:00:27.7]} 24. Rb3 {[%clk 0:01:18.2]} 24... Bf4 {[%clk
0:00:27]} 25. Ba5 {[%clk 0:01:15.4]} 25... Rdb8 {[%clk 0:00:18]} 26. g3 {[%clk
0:01:03]} 26... Rxb3 {[%clk 0:00:17.6]} 27. Qxb3 {[%clk 0:01:03.3]} 27... Rb8
{[%clk 0:00:15.7]} 28. Qc2 {[%clk 0:01:03.5]} 28... Bc7 {[%clk 0:00:16.3]} 29.
Bxc7 {[%clk 0:00:53.3]} 29... Nxc7 {[%clk 0:00:18.2]} 30. Bxc6 {[%clk
0:00:49.2]} 30... Nd5 {[%clk 0:00:14.7]} 31. Ne5 {[%clk 0:00:44.3]} 31... Nb4
{[%clk 0:00:14.8]} 32. Qe4 {[%clk 0:00:39.8]} 32... Nxc6 {[%clk 0:00:15.8]} 33.
Qxc6 {[%clk 0:00:40.5]} 33... Bb7 {[%clk 0:00:12.6]} 34. Qc7 {[%clk 0:00:40.6]}
34... Rc8 {[%clk 0:00:07.6]} 35. Qxb7 {[%clk 0:00:41.1]} 1-0

[Event "*** Titled Tuesday 3|2 Blitz"]
[Site "Chess.com"]
[Date "2015.11.03"]
[Round "5"]
[White "chesstatour"]
[Black "Tesla17"]
[Result "0-1"]
[WhiteElo "1928"]
[BlackElo "2209"]
[TimeControl "180+2"]
[EndTime "18:00:42 PST"]
[Termination "Tesla17 won on time"]

1. d4 {[%clk 0:02:59.9]} 1... Nf6 {[%clk 0:03:00.6]} 2. c4 {[%clk 0:03:00.2]}
2... g6 {[%clk 0:03:01.6]} 3. Nc3 {[%clk 0:03:01]} 3... d5 {[%clk 0:03:02.3]} 4.
f3 {[%clk 0:03:02.3]} 4... c5 {[%clk 0:02:57.3]} 5. cxd5 {[%clk 0:02:56.2]} 5...
Nxd5 {[%clk 0:02:56.6]} 6. e4 {[%clk 0:02:57.2]} 6... Nxc3 {[%clk 0:02:54.8]} 7.
bxc3 {[%clk 0:02:59.1]} 7... Bg7 {[%clk 0:02:56.3]} 8. Be3 {[%clk 0:02:58.7]}
8... Nc6 {[%clk 0:02:54.4]} 9. Bb5 {[%clk 0:02:42.7]} 9... O-O {[%clk
0:02:47.8]} 10. Ne2 {[%clk 0:02:40.7]} 10... cxd4 {[%clk 0:02:45.7]} 11. Nxd4
{[%clk 0:02:25.3]} 11... Nxd4 {[%clk 0:02:29]} 12. Bxd4 {[%clk 0:02:27.2]} 12...
e5 {[%clk 0:02:25.6]} 13. Bc5 {[%clk 0:02:12.8]} 13... Qa5 {[%clk 0:02:24.9]}
14. Bxf8 {[%clk 0:01:15.8]} 14... Qxc3+ {[%clk 0:02:23.5]} 15. Kf1 {[%clk
0:01:05.4]} 15... Bxf8 {[%clk 0:02:24.2]} 16. h4 {[%clk 0:00:31.7]} 16... Be6
{[%clk 0:02:18.9]} 17. Be2 {[%clk 0:00:17.9]} 17... Bc5 {[%clk 0:02:18.1]} 18.
Rc1 {[%clk 0:00:14.6]} 18... Qe3 {[%clk 0:02:17.6]} 19. Qe1 {[%clk 0:00:13.7]}
19... Rd8 {[%clk 0:02:12.7]} 20. Rc3 {[%clk 0:00:14.6]} 20... Qd4 {[%clk
0:01:24]} 21. Rd3 {[%clk 0:00:15.4]} 21... Qxd3 {[%clk 0:01:22.1]} 22. Bxd3
{[%clk 0:00:17.3]} 22... Rxd3 {[%clk 0:01:23.3]} 23. Qc1 {[%clk 0:00:16.5]}
23... b6 {[%clk 0:01:02.5]} 24. Ke2 {[%clk 0:00:15.7]} 24... Ra3 {[%clk
0:00:59.1]} 25. Rd1 {[%clk 0:00:15.8]} 25... Rxa2+ {[%clk 0:00:56.2]} 26. Rd2
{[%clk 0:00:17.2]} 26... Ra4 {[%clk 0:00:53]} 27. Rd8+ {[%clk 0:00:06.5]} 27...
Kg7 {[%clk 0:00:53.5]} 28. h5 {[%clk 0:00:07.1]} 28... h6 {[%clk 0:00:53.9]} 29.
hxg6 {[%clk 0:00:06]} 29... fxg6 {[%clk 0:00:54.7]} 30. g4 {[%clk 0:00:03.1]}
30... Bc4+ {[%clk 0:00:52]} 31. Ke1 {[%clk 0:00:03.3]} 31... Bd4 {[%clk
0:00:49.2]} 32. Rd7+ {[%clk 0:00:04.4]} 32... Kf6 {[%clk 0:00:41.7]} 33. Rxd4
{[%clk 0:00:04.7]} 33... exd4 {[%clk 0:00:42]} 34. Qf4+ {[%clk 0:00:05.7]} 34...
Ke6 {[%clk 0:00:37.9]} 35. Qxh6 {[%clk 0:00:06.3]} 35... Kd6 {[%clk 0:00:23.5]}
36. Qxg6+ {[%clk 0:00:06.7]} 36... Kc5 {[%clk 0:00:25.1]} 37. Qf6 {[%clk
0:00:05.5]} 37... d3 {[%clk 0:00:21.4]} 38. Qe5+ {[%clk 0:00:05.6]} 38... Kb4
{[%clk 0:00:22.3]} 39. Qb2+ {[%clk 0:00:06.4]} 39... Ka5 {[%clk 0:00:17.9]} 40.
g5 {[%clk 0:00:06.8]} 40... Ra2 {[%clk 0:00:14.6]} 41. Qc3+ {[%clk 0:00:07.2]}
41... Kb5 {[%clk 0:00:16.3]} 42. Qe5+ {[%clk 0:00:05.7]} 42... Kb4 {[%clk
0:00:17.5]} 43. Qd6+ {[%clk 0:00:05.4]} 43... Kb3 {[%clk 0:00:18.5]} 44. g6
{[%clk 0:00:04.2]} 44... d2+ {[%clk 0:00:18.6]} 45. Kd1 {[%clk 0:00:05]} 45...
Kc3 {[%clk 0:00:18.6]} 46. Qe5+ {[%clk 0:00:05.3]} 46... Kd3 {[%clk 0:00:18]}
47. Qd6+ {[%clk 0:00:06.3]} 47... Ke3 {[%clk 0:00:18.7]} 0-1